[Event "Titled Tuesday Blitz June 13 Early 2023"]
[White "Krzyzanowski, Marcin"]
[Black "Domingo Nunez, Alejandro"]
[WhiteFideId "1132199"]
[BlackFideId "22245561"]
[WhiteElo "2471"]
[BlackElo "2291"]
[Result "1-0"]
[Round "6"]
[TimeControl "180+2"]
[Date "2023.06.13"]
[WhiteClock "0:00:12"]
[BlackClock "0:00:00"]
[Board "38"]

1. e4 {[%clk 0:03:00]}  g6 {[%clk 0:02:39]} 2. d4 {[%clk 0:02:59]}  Bg7 {[%clk 0:02:40]} 3. Nc3 {[%clk 0:02:57]}  c6 {[%clk 0:02:40]} 4. h4 {[%clk 0:02:53]}  d5 {[%clk 0:02:40]} 5. e5 {[%clk 0:02:53]}  h5 {[%clk 0:02:39]} 6. Bg5 {[%clk 0:02:45]}  Nh6 {[%clk 0:02:38]} 7. Qd2 {[%clk 0:02:43]}  f6 {[%clk 0:02:22]} 8. exf6 {[%clk 0:02:33]}  exf6 {[%clk 0:02:23]} 9. Bf4 {[%clk 0:02:32]}  Bf5 {[%clk 0:02:20]} 10. O-O-O {[%clk 0:02:32]}  Kf7 {[%clk 0:02:20]} 11. Nge2 {[%clk 0:02:25]}  Nd7 {[%clk 0:02:17]} 12. Ng3 {[%clk 0:02:25]}  Nf8 {[%clk 0:02:17]} 13. Kb1 {[%clk 0:02:18]}  Ne6 {[%clk 0:02:15]} 14. Be3 {[%clk 0:02:18]}  Qd6 {[%clk 0:02:12]} 15. Bd3 {[%clk 0:02:06]}  Bxd3 {[%clk 0:02:10]} 16. Qxd3 {[%clk 0:02:07]}  Nf4 {[%clk 0:01:48]} 17. Bxf4 {[%clk 0:02:02]}  Qxf4 {[%clk 0:01:48]} 18. Nce2 {[%clk 0:02:01]}  Qd6 {[%clk 0:01:46]} 19. c4 {[%clk 0:01:55]}  Ng4 {[%clk 0:01:24]} 20. Rhf1 {[%clk 0:01:52]}  Rhe8 {[%clk 0:01:20]} 21. cxd5 {[%clk 0:01:48]}  cxd5 {[%clk 0:01:20]} 22. Qb3 {[%clk 0:01:37]}  Kg8 {[%clk 0:01:01]} 23. Nc3 {[%clk 0:01:34]}  Rad8 {[%clk 0:00:43]} 24. Nge4 {[%clk 0:01:22]}  Qe6 {[%clk 0:00:37]} 25. Nc5 {[%clk 0:01:21]}  Qf5+ {[%clk 0:00:37]} 26. Ka1 {[%clk 0:01:17]}  b6 {[%clk 0:00:37]} 27. Nd3 {[%clk 0:01:09]}  Kh7 {[%clk 0:00:38]} 28. a4 {[%clk 0:01:01]}  Bf8 {[%clk 0:00:37]} 29. g3 {[%clk 0:00:54]}  Bh6 {[%clk 0:00:34]} 30. Nb5 {[%clk 0:00:52]}  a6 {[%clk 0:00:24]} 31. Nc7 {[%clk 0:00:51]}  Re7 {[%clk 0:00:23]} 32. Nxa6 {[%clk 0:00:46]}  Ra7 {[%clk 0:00:23]} 33. Qxb6 {[%clk 0:00:45]}  Rda8 {[%clk 0:00:21]} 34. Nac5 {[%clk 0:00:44]}  Nh2 {[%clk 0:00:06]} 35. Rfe1 {[%clk 0:00:42]}  Nf3 {[%clk 0:00:07]} 36. Re6 {[%clk 0:00:28]}  Bg7 {[%clk 0:00:03]} 37. Qb4 {[%clk 0:00:16]}  Ra5 {[%clk 0:00:00]} 38. b3 {[%clk 0:00:12]} 1-0


[Site "https://www.chess.com"]

[Event "Titled Tuesday Blitz June 13 Early 2023"]
[White "Ingebretsen, Jens E"]
[Black "Miladinovic, Igor"]
[WhiteFideId "1522965"]
[BlackFideId "4203380"]
[WhiteElo "2213"]
[BlackElo "2568"]
[Result "1-0"]
[Round "6"]
[TimeControl "180+2"]
[Date "2023.06.13"]
[WhiteClock "0:00:44"]
[BlackClock "0:00:09"]
[Board "40"]

1. c4 {[%clk 0:03:00]}  e5 {[%clk 0:02:34]} 2. Nc3 {[%clk 0:03:00]}  Nc6 {[%clk 0:02:33]} 3. Nf3 {[%clk 0:02:59]}  g6 {[%clk 0:02:33]} 4. d4 {[%clk 0:02:59]}  exd4 {[%clk 0:02:32]} 5. Nxd4 {[%clk 0:03:00]}  Bg7 {[%clk 0:02:33]} 6. Nxc6 {[%clk 0:03:00]}  bxc6 {[%clk 0:02:31]} 7. g3 {[%clk 0:03:01]}  Ne7 {[%clk 0:02:25]} 8. Bg2 {[%clk 0:03:01]}  O-O {[%clk 0:02:26]} 9. O-O {[%clk 0:03:02]}  h6 {[%clk 0:02:11]} 10. Qc2 {[%clk 0:02:58]}  d5 {[%clk 0:02:08]} 11. Rd1 {[%clk 0:02:53]}  Be6 {[%clk 0:02:07]} 12. Be3 {[%clk 0:02:41]}  Qd6 {[%clk 0:01:59]} 13. Ne4 {[%clk 0:02:29]}  Qe5 {[%clk 0:01:42]} 14. Nc5 {[%clk 0:02:11]}  Qxb2 {[%clk 0:01:33]} 15. Qxb2 {[%clk 0:02:11]}  Bxb2 {[%clk 0:01:33]} 16. Rab1 {[%clk 0:02:12]}  Bg7 {[%clk 0:01:33]} 17. Rb7 {[%clk 0:02:08]}  d4 {[%clk 0:01:23]} 18. Bxd4 {[%clk 0:02:03]}  Bxc4 {[%clk 0:01:16]} 19. Bxg7 {[%clk 0:02:00]}  Kxg7 {[%clk 0:01:17]} 20. Rd7 {[%clk 0:01:54]}  Rfd8 {[%clk 0:01:06]} 21. Rxe7 {[%clk 0:01:46]}  Rd1+ {[%clk 0:01:05]} 22. Bf1 {[%clk 0:01:46]}  Rad8 {[%clk 0:01:00]} 23. Rbxc7 {[%clk 0:00:55]}  Rc1 {[%clk 0:00:51]} 24. Rcd7 {[%clk 0:00:54]}  Rxd7 {[%clk 0:00:46]} 25. Nxd7 {[%clk 0:00:55]}  Bxa2 {[%clk 0:00:45]} 26. f4 {[%clk 0:00:52]}  a5 {[%clk 0:00:45]} 27. Kf2 {[%clk 0:00:52]}  a4 {[%clk 0:00:45]} 28. Ne5 {[%clk 0:00:52]}  Bb3 {[%clk 0:00:36]} 29. Ra7 {[%clk 0:00:51]}  c5 {[%clk 0:00:35]} 30. Bg2 {[%clk 0:00:50]}  Ra1 {[%clk 0:00:28]} 31. Be4 {[%clk 0:00:48]}  g5 {[%clk 0:00:25]} 32. Bg6 {[%clk 0:00:44]}  gxf4 {[%clk 0:00:20]} 33. gxf4 {[%clk 0:00:45]}  Kf6 {[%clk 0:00:15]} 34. Bxf7 {[%clk 0:00:45]}  Kf5 {[%clk 0:00:12]} 35. Bxb3 {[%clk 0:00:44]}  axb3 {[%clk 0:00:09]} 36. Rxa1 {[%clk 0:00:44]} 1-0


[Site "https://www.chess.com"]

[Event "Titled Tuesday Blitz June 13 Early 2023"]
[White "ATM622"]
[Black "Hafiz, Arif Abdul"]
[BlackFideId "7104227"]
[WhiteElo "2589"]
[BlackElo "2198"]
[Result "0-1"]
[Round "6"]
[TimeControl "180+2"]
[Date "2023.06.13"]
[WhiteClock "0:00:29"]
[BlackClock "0:00:38"]
[Board "41"]

1. d4 {[%clk 0:03:00]}  Nf6 {[%clk 0:02:59]} 2. c4 {[%clk 0:03:00]}  g6 {[%clk 0:03:00]} 3. g3 {[%clk 0:03:00]}  c6 {[%clk 0:02:59]} 4. Bg2 {[%clk 0:03:00]}  d5 {[%clk 0:02:59]} 5. Nd2 {[%clk 0:03:00]}  Bg7 {[%clk 0:02:58]} 6. Ngf3 {[%clk 0:03:00]}  O-O {[%clk 0:02:59]} 7. O-O {[%clk 0:03:01]}  Bf5 {[%clk 0:02:58]} 8. b3 {[%clk 0:03:01]}  Ne4 {[%clk 0:02:44]} 9. Bb2 {[%clk 0:03:01]}  dxc4 {[%clk 0:02:35]} 10. Nxc4 {[%clk 0:02:56]}  Nd6 {[%clk 0:02:34]} 11. Nce5 {[%clk 0:02:54]}  Be4 {[%clk 0:02:30]} 12. Rc1 {[%clk 0:02:51]}  Na6 {[%clk 0:02:30]} 13. Nd2 {[%clk 0:02:42]}  Bxg2 {[%clk 0:02:29]} 14. Kxg2 {[%clk 0:02:43]}  Nc7 {[%clk 0:02:22]} 15. Ndf3 {[%clk 0:02:34]}  Nd5 {[%clk 0:02:15]} 16. Qc2 {[%clk 0:02:27]}  Nb4 {[%clk 0:02:15]} 17. Qb1 {[%clk 0:02:27]}  Nd5 {[%clk 0:02:16]} 18. Rfe1 {[%clk 0:02:20]}  Nc7 {[%clk 0:02:16]} 19. e4 {[%clk 0:02:16]}  Ne6 {[%clk 0:02:17]} 20. Nd3 {[%clk 0:02:14]}  Nb5 {[%clk 0:02:16]} 21. d5 {[%clk 0:01:51]}  cxd5 {[%clk 0:02:17]} 22. Bxg7 {[%clk 0:01:50]}  Kxg7 {[%clk 0:02:15]} 23. Qb2+ {[%clk 0:01:50]}  Kg8 {[%clk 0:02:14]} 24. Rcd1 {[%clk 0:01:42]}  d4 {[%clk 0:02:09]} 25. Nde5 {[%clk 0:01:38]}  Qc7 {[%clk 0:01:42]} 26. a4 {[%clk 0:01:33]}  Nc3 {[%clk 0:01:34]} 27. Rd3 {[%clk 0:01:33]}  Rfd8 {[%clk 0:01:33]} 28. Nc4 {[%clk 0:01:27]}  Nxa4 {[%clk 0:01:31]} 29. bxa4 {[%clk 0:00:57]}  Qxc4 {[%clk 0:01:30]} 30. Ne5 {[%clk 0:00:58]}  Qc7 {[%clk 0:01:26]} 31. f4 {[%clk 0:00:57]}  Rac8 {[%clk 0:01:22]} 32. Re2 {[%clk 0:00:57]}  b6 {[%clk 0:01:16]} 33. Qb3 {[%clk 0:00:53]}  Kg7 {[%clk 0:01:01]} 34. h4 {[%clk 0:00:48]}  Qd6 {[%clk 0:00:58]} 35. Nf3 {[%clk 0:00:39]}  Nc5 {[%clk 0:00:57]} 36. Qc4 {[%clk 0:00:37]}  Nxd3 {[%clk 0:00:57]} 37. Qxd3 {[%clk 0:00:38]}  Rc3 {[%clk 0:00:56]} 38. Qd2 {[%clk 0:00:37]}  Qc5 {[%clk 0:00:52]} 39. Ne5 {[%clk 0:00:34]}  d3 {[%clk 0:00:45]} 40. Rf2 {[%clk 0:00:29]}  Rc2 {[%clk 0:00:40]} 41. Qe1 {[%clk 0:00:29]}  Rxf2+ {[%clk 0:00:36]} 42. Qxf2 {[%clk 0:00:30]}  Qxf2+ {[%clk 0:00:37]} 43. Kxf2 {[%clk 0:00:29]}  d2 {[%clk 0:00:38]} 0-1


[Site "https://www.chess.com"]

[Event "Titled Tuesday Blitz June 13 Early 2023"]
[White "Czerw, Dawid"]
[Black "Rahman, Masruri"]
[WhiteFideId "1145746"]
[BlackFideId "7101163"]
[WhiteElo "2144"]
[BlackElo "2256"]
[Result "0-1"]
[Round "6"]
[TimeControl "180+2"]
[Date "2023.06.13"]
[WhiteClock "0:00:02"]
[BlackClock "0:00:12"]
[Board "42"]

1. e4 {[%clk 0:03:00]}  e6 {[%clk 0:02:58]} 2. d4 {[%clk 0:03:00]}  d5 {[%clk 0:02:58]} 3. Nc3 {[%clk 0:03:00]}  Bb4 {[%clk 0:02:59]} 4. e5 {[%clk 0:03:00]}  c5 {[%clk 0:02:59]} 5. a3 {[%clk 0:03:00]}  Bxc3+ {[%clk 0:02:59]} 6. bxc3 {[%clk 0:03:01]}  Qc7 {[%clk 0:03:00]} 7. Qg4 {[%clk 0:02:59]}  f5 {[%clk 0:02:59]} 8. Qg3 {[%clk 0:02:57]}  Nc6 {[%clk 0:02:59]} 9. Ne2 {[%clk 0:02:53]}  cxd4 {[%clk 0:02:59]} 10. cxd4 {[%clk 0:02:51]}  Nge7 {[%clk 0:02:59]} 11. h4 {[%clk 0:02:45]}  O-O {[%clk 0:02:59]} 12. h5 {[%clk 0:02:45]}  f4 {[%clk 0:02:55]} 13. Bxf4 {[%clk 0:02:08]}  Nf5 {[%clk 0:02:54]} 14. Qd3 {[%clk 0:02:05]}  Nfxd4 {[%clk 0:02:51]} 15. Bg3 {[%clk 0:01:22]}  Nf5 {[%clk 0:01:42]} 16. f4 {[%clk 0:01:15]}  Nxg3 {[%clk 0:01:36]} 17. Qxg3 {[%clk 0:01:15]}  Qa5+ {[%clk 0:01:28]} 18. c3 {[%clk 0:01:10]}  d4 {[%clk 0:01:25]} 19. Rc1 {[%clk 0:00:52]}  Qxa3 {[%clk 0:01:17]} 20. h6 {[%clk 0:00:50]}  g6 {[%clk 0:01:16]} 21. Rh3 {[%clk 0:00:38]}  dxc3 {[%clk 0:01:07]} 22. Rxc3 {[%clk 0:00:33]}  Qb4 {[%clk 0:01:07]} 23. Kf2 {[%clk 0:00:22]}  Bd7 {[%clk 0:01:06]} 24. Rd3 {[%clk 0:00:19]}  Nxe5 {[%clk 0:00:59]} 25. Rd4 {[%clk 0:00:14]}  Qb6 {[%clk 0:00:52]} 26. Ke1 {[%clk 0:00:05]}  Ba4 {[%clk 0:00:23]} 27. fxe5 {[%clk 0:00:03]}  Qb1+ {[%clk 0:00:23]} 28. Kd2 {[%clk 0:00:03]}  Rxf1 {[%clk 0:00:19]} 29. Qc3 {[%clk 0:00:02]}  Qe1+ {[%clk 0:00:13]} 30. Ke3 {[%clk 0:00:02]}  Qf2+ {[%clk 0:00:12]} 31. Kd2 {[%clk 0:00:02]}  Rd1# {[%clk 0:00:12]} 0-1


[Site "https://www.chess.com"]

[Event "Titled Tuesday Blitz June 13 Early 2023"]
[White "Sattarov, Bobir"]
[Black "Mendez Fortes, Eduardo Jesus"]
[WhiteFideId "14203081"]
[BlackFideId "3502376"]
[WhiteElo "2351"]
[BlackElo "2307"]
[Result "1-0"]
[Round "6"]
[TimeControl "180+2"]
[Date "2023.06.13"]
[WhiteClock "0:00:13"]
[BlackClock "0:00:22"]
[Board "43"]

1. e4 {[%clk 0:03:00]}  c5 {[%clk 0:02:59]} 2. Nf3 {[%clk 0:02:59]}  d6 {[%clk 0:03:00]} 3. d4 {[%clk 0:02:59]}  cxd4 {[%clk 0:03:01]} 4. Nxd4 {[%clk 0:03:00]}  Nf6 {[%clk 0:03:01]} 5. f3 {[%clk 0:03:00]}  e5 {[%clk 0:02:56]} 6. Nb3 {[%clk 0:03:00]}  d5 {[%clk 0:02:51]} 7. Bg5 {[%clk 0:03:00]}  Be6 {[%clk 0:02:50]} 8. Bxf6 {[%clk 0:02:54]}  gxf6 {[%clk 0:02:51]} 9. exd5 {[%clk 0:02:54]}  Qxd5 {[%clk 0:02:51]} 10. Qxd5 {[%clk 0:02:47]}  Bxd5 {[%clk 0:02:51]} 11. Nc3 {[%clk 0:02:48]}  Bc6 {[%clk 0:02:37]} 12. O-O-O {[%clk 0:02:44]}  a6 {[%clk 0:02:24]} 13. Na5 {[%clk 0:02:37]}  Bb4 {[%clk 0:02:14]} 14. Nxc6 {[%clk 0:02:33]}  bxc6 {[%clk 0:02:02]} 15. Ne4 {[%clk 0:02:32]}  Ke7 {[%clk 0:01:54]} 16. Bc4 {[%clk 0:02:28]}  f5 {[%clk 0:01:39]} 17. Ng3 {[%clk 0:02:25]}  f4 {[%clk 0:01:38]} 18. Nf5+ {[%clk 0:02:13]}  Kf6 {[%clk 0:01:36]} 19. g4 {[%clk 0:01:54]}  Bc5 {[%clk 0:01:18]} 20. Nh6 {[%clk 0:01:07]}  Ra7 {[%clk 0:01:16]} 21. h4 {[%clk 0:01:06]}  Kg7 {[%clk 0:00:30]} 22. g5 {[%clk 0:00:52]}  Re8 {[%clk 0:00:28]} 23. Nf5+ {[%clk 0:00:47]}  Kh8 {[%clk 0:00:20]} 24. Rhe1 {[%clk 0:00:32]}  a5 {[%clk 0:00:16]} 25. Nd6 {[%clk 0:00:27]}  Ree7 {[%clk 0:00:05]} 26. Ne4 {[%clk 0:00:26]}  Be3+ {[%clk 0:00:05]} 27. Rxe3 {[%clk 0:00:25]}  fxe3 {[%clk 0:00:06]} 28. Rd8+ {[%clk 0:00:25]}  Kg7 {[%clk 0:00:06]} 29. Nf6 {[%clk 0:00:23]}  Kg6 {[%clk 0:00:04]} 30. Rxb8 {[%clk 0:00:14]}  Kf5 {[%clk 0:00:03]} 31. Kd1 {[%clk 0:00:12]}  Kf4 {[%clk 0:00:04]} 32. Ke2 {[%clk 0:00:12]}  Rab7 {[%clk 0:00:04]} 33. Rxb7 {[%clk 0:00:09]}  Rxb7 {[%clk 0:00:05]} 34. Nh5+ {[%clk 0:00:09]}  Kf5 {[%clk 0:00:04]} 35. Bd3+ {[%clk 0:00:09]}  Ke6 {[%clk 0:00:05]} 36. b3 {[%clk 0:00:08]}  Rb4 {[%clk 0:00:04]} 37. Bc4+ {[%clk 0:00:06]}  Kf5 {[%clk 0:00:05]} 38. Kxe3 {[%clk 0:00:06]}  a4 {[%clk 0:00:05]} 39. Ng3+ {[%clk 0:00:05]}  Kg6 {[%clk 0:00:05]} 40. a3 {[%clk 0:00:04]}  Rb8 {[%clk 0:00:05]} 41. b4 {[%clk 0:00:04]}  Rc8 {[%clk 0:00:05]} 42. Bd3+ {[%clk 0:00:04]}  Kg7 {[%clk 0:00:05]} 43. Nf5+ {[%clk 0:00:04]}  Kf8 {[%clk 0:00:05]} 44. c4 {[%clk 0:00:04]}  Rd8 {[%clk 0:00:05]} 45. c5 {[%clk 0:00:04]}  Rb8 {[%clk 0:00:05]} 46. Be4 {[%clk 0:00:03]}  Rc8 {[%clk 0:00:05]} 47. Nd6 {[%clk 0:00:02]}  Rb8 {[%clk 0:00:05]} 48. Nc4 {[%clk 0:00:02]}  Rd8 {[%clk 0:00:05]} 49. Ke2 {[%clk 0:00:01]}  Rd4 {[%clk 0:00:05]} 50. Nxe5 {[%clk 0:00:01]}  Ke7 {[%clk 0:00:05]} 51. Nxc6+ {[%clk 0:00:02]}  Ke6 {[%clk 0:00:05]} 52. Nxd4+ {[%clk 0:00:03]}  Ke5 {[%clk 0:00:06]} 53. Nb5 {[%clk 0:00:03]}  Kf4 {[%clk 0:00:07]} 54. Nc3 {[%clk 0:00:04]}  Kg3 {[%clk 0:00:08]} 55. h5 {[%clk 0:00:04]}  Kh4 {[%clk 0:00:09]} 56. g6 {[%clk 0:00:05]}  fxg6 {[%clk 0:00:10]} 57. hxg6 {[%clk 0:00:06]}  hxg6 {[%clk 0:00:11]} 58. Bxg6 {[%clk 0:00:05]}  Kg5 {[%clk 0:00:12]} 59. Be4 {[%clk 0:00:06]}  Kf6 {[%clk 0:00:12]} 60. Nxa4 {[%clk 0:00:06]}  Ke7 {[%clk 0:00:13]} 61. Nc3 {[%clk 0:00:07]}  Kd8 {[%clk 0:00:14]} 62. Kd3 {[%clk 0:00:07]}  Kc7 {[%clk 0:00:15]} 63. Kc4 {[%clk 0:00:08]}  Kb8 {[%clk 0:00:16]} 64. f4 {[%clk 0:00:09]}  Ka7 {[%clk 0:00:17]} 65. f5 {[%clk 0:00:09]}  Ka6 {[%clk 0:00:18]} 66. Bd5 {[%clk 0:00:10]}  Ka7 {[%clk 0:00:19]} 67. Ne4 {[%clk 0:00:11]}  Ka6 {[%clk 0:00:20]} 68. f6 {[%clk 0:00:11]}  Ka7 {[%clk 0:00:21]} 69. f7 {[%clk 0:00:12]}  Ka6 {[%clk 0:00:21]} 70. f8=Q {[%clk 0:00:12]}  Ka7 {[%clk 0:00:22]} 71. Qa8# {[%clk 0:00:13]} 1-0


[Site "https://www.chess.com"]

[Event "Titled Tuesday Blitz June 13 Early 2023"]
[White "Csonka, Balazs"]
[Black "Gontcharov, Vladislav"]
[WhiteFideId "742910"]
[BlackFideId "4123492"]
[WhiteElo "2404"]
[BlackElo "2420"]
[Result "0-1"]
[Round "6"]
[TimeControl "180+2"]
[Date "2023.06.13"]
[WhiteClock "0:00:03"]
[BlackClock "0:00:49"]
[Board "44"]

1. c4 {[%clk 0:03:00]}  Nf6 {[%clk 0:02:58]} 2. Nc3 {[%clk 0:02:57]}  c5 {[%clk 0:02:57]} 3. g3 {[%clk 0:02:56]}  Nc6 {[%clk 0:02:56]} 4. Bg2 {[%clk 0:02:56]}  d6 {[%clk 0:02:56]} 5. Nf3 {[%clk 0:02:51]}  g6 {[%clk 0:02:55]} 6. d4 {[%clk 0:02:50]}  cxd4 {[%clk 0:02:55]} 7. Nxd4 {[%clk 0:02:51]}  Bd7 {[%clk 0:02:56]} 8. b3 {[%clk 0:02:49]}  Bg7 {[%clk 0:02:55]} 9. Bb2 {[%clk 0:02:50]}  O-O {[%clk 0:02:55]} 10. O-O {[%clk 0:02:50]}  Nxd4 {[%clk 0:02:55]} 11. Qxd4 {[%clk 0:02:49]}  Bc6 {[%clk 0:02:56]} 12. Qd2 {[%clk 0:02:23]}  Qa5 {[%clk 0:02:40]} 13. Rad1 {[%clk 0:02:13]}  Rfd8 {[%clk 0:02:18]} 14. e4 {[%clk 0:02:02]}  Rab8 {[%clk 0:02:12]} 15. Rfe1 {[%clk 0:01:41]}  a6 {[%clk 0:02:11]} 16. a3 {[%clk 0:01:41]}  b5 {[%clk 0:02:01]} 17. b4 {[%clk 0:01:34]}  Qc7 {[%clk 0:02:00]} 18. Nd5 {[%clk 0:01:26]}  Bxd5 {[%clk 0:02:00]} 19. cxd5 {[%clk 0:01:26]}  Nd7 {[%clk 0:01:58]} 20. Rc1 {[%clk 0:01:21]}  Qa7 {[%clk 0:01:57]} 21. Bxg7 {[%clk 0:01:02]}  Kxg7 {[%clk 0:01:56]} 22. Bf1 {[%clk 0:00:57]}  Rbc8 {[%clk 0:01:54]} 23. Kg2 {[%clk 0:00:56]}  Qb7 {[%clk 0:01:33]} 24. f4 {[%clk 0:00:43]}  Rxc1 {[%clk 0:01:30]} 25. Rxc1 {[%clk 0:00:44]}  Rc8 {[%clk 0:01:30]} 26. Rc3 {[%clk 0:00:45]}  Nb6 {[%clk 0:01:24]} 27. Rxc8 {[%clk 0:00:39]}  Nxc8 {[%clk 0:01:21]} 28. Qc3+ {[%clk 0:00:39]}  f6 {[%clk 0:01:21]} 29. h4 {[%clk 0:00:34]}  Nb6 {[%clk 0:01:19]} 30. Kh2 {[%clk 0:00:26]}  Qc8 {[%clk 0:01:19]} 31. Qd4 {[%clk 0:00:26]}  Qc2+ {[%clk 0:01:18]} 32. Kg1 {[%clk 0:00:16]}  Nc4 {[%clk 0:01:14]} 33. Qa7 {[%clk 0:00:15]}  Kf7 {[%clk 0:01:09]} 34. Qxa6 {[%clk 0:00:13]}  Nd2 {[%clk 0:01:06]} 35. Be2 {[%clk 0:00:12]}  Nxe4 {[%clk 0:01:01]} 36. Qxb5 {[%clk 0:00:05]}  Qc1+ {[%clk 0:00:56]} 37. Kg2 {[%clk 0:00:03]}  Qe1 {[%clk 0:00:55]} 38. Kf3 {[%clk 0:00:02]}  f5 {[%clk 0:00:50]} 39. Qb6 {[%clk 0:00:03]}  Qxg3# {[%clk 0:00:49]} 0-1


[Site "https://www.chess.com"]

[Event "Titled Tuesday Blitz June 13 Early 2023"]
[White "Shuvalova, Polina"]
[Black "Turayev, Shahruh"]
[WhiteFideId "24171760"]
[BlackFideId "14003856"]
[WhiteElo "2281"]
[BlackElo "2113"]
[Result "0-1"]
[Round "6"]
[TimeControl "180+2"]
[Date "2023.06.13"]
[WhiteClock "0:00:02"]
[BlackClock "0:00:58"]
[Board "45"]

1. e4 {[%clk 0:03:00]}  d5 {[%clk 0:02:59]} 2. exd5 {[%clk 0:03:01]}  Qxd5 {[%clk 0:03:00]} 3. Nc3 {[%clk 0:03:01]}  Qa5 {[%clk 0:03:00]} 4. d4 {[%clk 0:03:00]}  Nf6 {[%clk 0:03:00]} 5. Nf3 {[%clk 0:03:00]}  Nc6 {[%clk 0:03:00]} 6. Bb5 {[%clk 0:02:59]}  Ne4 {[%clk 0:03:00]} 7. Bxc6+ {[%clk 0:02:58]}  bxc6 {[%clk 0:03:00]} 8. O-O {[%clk 0:02:58]}  Nxc3 {[%clk 0:03:00]} 9. bxc3 {[%clk 0:02:59]}  Bg4 {[%clk 0:03:00]} 10. h3 {[%clk 0:02:57]}  Qxc3 {[%clk 0:02:48]} 11. Be3 {[%clk 0:02:42]}  Bh5 {[%clk 0:02:45]} 12. Rb1 {[%clk 0:02:32]}  e6 {[%clk 0:02:41]} 13. Rb3 {[%clk 0:02:31]}  Qc4 {[%clk 0:02:36]} 14. g4 {[%clk 0:02:21]}  Bg6 {[%clk 0:02:35]} 15. Ne5 {[%clk 0:01:57]}  Qxc2 {[%clk 0:02:18]} 16. Qf3 {[%clk 0:01:51]}  Qe4 {[%clk 0:02:09]} 17. Kg2 {[%clk 0:01:08]}  Qd5 {[%clk 0:01:45]} 18. Nxg6 {[%clk 0:00:59]}  hxg6 {[%clk 0:01:44]} 19. Rc1 {[%clk 0:00:53]}  Qxf3+ {[%clk 0:01:39]} 20. Kxf3 {[%clk 0:00:53]}  Rxh3+ {[%clk 0:01:39]} 21. Kg2 {[%clk 0:00:54]}  Rh8 {[%clk 0:01:39]} 22. Rxc6 {[%clk 0:00:54]}  Bd6 {[%clk 0:01:39]} 23. Ra6 {[%clk 0:00:51]}  Kd7 {[%clk 0:01:39]} 24. Rb7 {[%clk 0:00:51]}  Rh2+ {[%clk 0:01:33]} 25. Kf3 {[%clk 0:00:49]}  Rh3+ {[%clk 0:01:33]} 26. Kg2 {[%clk 0:00:48]}  Rh2+ {[%clk 0:01:33]} 27. Kf3 {[%clk 0:00:48]}  f5 {[%clk 0:01:14]} 28. gxf5 {[%clk 0:00:46]}  gxf5 {[%clk 0:01:15]} 29. Raxa7 {[%clk 0:00:44]}  Rxa7 {[%clk 0:01:12]} 30. Rxa7 {[%clk 0:00:44]}  Rh5 {[%clk 0:01:08]} 31. a4 {[%clk 0:00:35]}  g5 {[%clk 0:01:08]} 32. a5 {[%clk 0:00:33]}  g4+ {[%clk 0:01:07]} 33. Ke2 {[%clk 0:00:33]}  f4 {[%clk 0:01:07]} 34. Bd2 {[%clk 0:00:34]}  Rh2 {[%clk 0:01:03]} 35. Ke1 {[%clk 0:00:12]}  f3 {[%clk 0:00:58]} 36. Be3 {[%clk 0:00:11]}  g3 {[%clk 0:00:58]} 37. Kf1 {[%clk 0:00:02]}  Rh1# {[%clk 0:00:58]} 0-1


[Site "https://www.chess.com"]

[Event "Titled Tuesday Blitz June 13 Early 2023"]
[White "Kielinkei"]
[Black "Rastbod, Ali"]
[BlackFideId "12567477"]
[WhiteElo "2493"]
[BlackElo "2281"]
[Result "0-1"]
[Round "6"]
[TimeControl "180+2"]
[Date "2023.06.13"]
[WhiteClock "0:00:00"]
[BlackClock "0:00:42"]
[Board "49"]

1. Nf3 {[%clk 0:03:00]}  c5 {[%clk 0:02:58]} 2. g3 {[%clk 0:02:59]}  Nc6 {[%clk 0:02:56]} 3. Bg2 {[%clk 0:02:58]}  g6 {[%clk 0:02:53]} 4. O-O {[%clk 0:02:57]}  Bg7 {[%clk 0:02:53]} 5. e4 {[%clk 0:02:56]}  d6 {[%clk 0:02:49]} 6. d3 {[%clk 0:02:56]}  Nf6 {[%clk 0:02:49]} 7. c4 {[%clk 0:02:55]}  O-O {[%clk 0:02:48]} 8. Nc3 {[%clk 0:02:55]}  Rb8 {[%clk 0:02:49]} 9. a3 {[%clk 0:02:42]}  a6 {[%clk 0:02:49]} 10. Rb1 {[%clk 0:02:42]}  b5 {[%clk 0:02:49]} 11. cxb5 {[%clk 0:02:43]}  axb5 {[%clk 0:02:50]} 12. b4 {[%clk 0:02:43]}  Ne8 {[%clk 0:02:42]} 13. Bd2 {[%clk 0:02:19]}  Bg4 {[%clk 0:02:36]} 14. h3 {[%clk 0:02:16]}  Bxf3 {[%clk 0:02:13]} 15. Bxf3 {[%clk 0:02:17]}  Nd4 {[%clk 0:02:08]} 16. Bg2 {[%clk 0:02:14]}  Nc7 {[%clk 0:02:08]} 17. f4 {[%clk 0:02:01]}  Qc8 {[%clk 0:01:53]} 18. Kh2 {[%clk 0:01:45]}  Qa6 {[%clk 0:01:52]} 19. Ra1 {[%clk 0:01:30]}  c4 {[%clk 0:01:29]} 20. dxc4 {[%clk 0:01:24]}  bxc4 {[%clk 0:01:30]} 21. Ra2 {[%clk 0:01:15]}  Nb3 {[%clk 0:01:28]} 22. Be1 {[%clk 0:01:13]}  e6 {[%clk 0:01:24]} 23. Rff2 {[%clk 0:01:04]}  Rfd8 {[%clk 0:01:23]} 24. a4 {[%clk 0:00:39]}  Rxb4 {[%clk 0:01:16]} 25. Nb5 {[%clk 0:00:36]}  Rxb5 {[%clk 0:01:15]} 26. axb5 {[%clk 0:00:36]}  Qxb5 {[%clk 0:01:16]} 27. Rac2 {[%clk 0:00:23]}  d5 {[%clk 0:01:12]} 28. e5 {[%clk 0:00:21]}  d4 {[%clk 0:00:51]} 29. Bd2 {[%clk 0:00:15]}  d3 {[%clk 0:00:50]} 30. Ra2 {[%clk 0:00:13]}  Nd5 {[%clk 0:00:50]} 31. Bxd5 {[%clk 0:00:13]}  exd5 {[%clk 0:00:49]} 32. f5 {[%clk 0:00:11]}  d4 {[%clk 0:00:49]} 33. fxg6 {[%clk 0:00:09]}  hxg6 {[%clk 0:00:50]} 34. Qf3 {[%clk 0:00:09]}  Qd5 {[%clk 0:00:49]} 35. Qf4 {[%clk 0:00:05]}  Bxe5 {[%clk 0:00:48]} 36. Qh6 {[%clk 0:00:03]}  Bg7 {[%clk 0:00:46]} 37. Qf4 {[%clk 0:00:02]}  Nxd2 {[%clk 0:00:46]} 38. Ra7 {[%clk 0:00:01]}  Ne4 {[%clk 0:00:42]} 39. Rxf7 {[%clk 0:00:00]}  Nxf2 {[%clk 0:00:42]} 0-1


[Site "https://www.chess.com"]